Cogmind - Beta 17.1 @@@ ROGUE MODE // 2026.09.21 @ 19:07:24 Player: teag2 Result: Destroyed by XR-2AT(R) with Subdweller Laser Performance ------------- Evolutions (0) 0 Regions Visited (2) 400 Robots Destroyed (23) 115 Value Destroyed (773) 773 Prototype IDs (5) 100 Alien Tech Used (0) 0 Bonus (0) 0 TOTAL SCORE: 1388 Bonus ------- None Cogmind --------- Core Integrity 0/250 Matter 130/300 Energy 100/100 System Corruption 0% Temperature Cool (6) Movement Treading (240) Ox1 Location -10/Subcaves Parts ------- > --- POWER (1) -------- (None) > --- PROPULSION (2) --- Light Treads > --- UTILITY (2) ------ Large Storage Unit Light Armor Plating > --- WEAPON (2) ------- Subdweller Machine Gun Battle Cannon > --- INVENTORY (15) --- Aluminum Leg Aluminum Leg Compact Wheel Compact Wheel Flightbrick Huge Storage Unit EM Pulse Gun Assault Rifle Barrage Gun Peak State ------------ > --- POWER ------------ Ion Engine > --- PROPULSION ------- Light Treads Light Treads > --- UTILITY ---------- Large Storage Unit Light Armor Plating > --- WEAPON ----------- Subdweller Machine Gun Battle Cannon > --- INVENTORY -------- Light Treads Light Treads Aluminum Leg Aluminum Leg Compact Wheel Compact Wheel Flightbrick Huge Storage Unit Light Armor Plating EM Pulse Gun Assault Rifle Barrage Gun [Rating: 13] Favorites ----------- Power Ion Engine Engine Ion Engine Propulsion Light Treads Treads Light Treads Leg Aluminum Leg Utility Light Armor Plating Storage Large Storage Unit Protection Light Armor Plating Weapon Assault Rifle Ballistic Gun Assault Rifle Ballistic Cannon Battle Cannon Build | -11 -10 -10 ------- Run | Yrd Mat Sub Slots Evolved . | . . . Power . | . . . Propulsion . | . . . Utility . | . . . Weapon . | . . . Parts Attached 14 | . 7 7 Power 1 | . . 1 Engine 1 | . . 1 Core . | . . . Reactor . | . . . Propulsion 4 | . 2 2 Treads 4 | . 2 2 Leg . | . . . Wheel . | . . . Hover . | . . . Flight . | . . . Utility 4 | . 3 1 Device . | . . . Storage 1 | . 1 . Processor . | . . . Hackware . | . . . Protection 3 | . 2 1 Artifact . | . . . Weapon 5 | . 2 3 Energy Gun . | . . . Energy Cannon . | . . . Ballistic Gun 4 | . 2 2 Ballistic Cannon 1 | . . 1 Launcher . | . . . Special Weapon . | . . . Impact Weapon . | . . . Slashing Weapon . | . . . Piercing Weapon . | . . . Special Melee Weapon . | . . . Unidentified Prototypes . | . . . Parts Lost 9 | . 3 6 Power 2 | . . 2 Propulsion 3 | . . 3 Utility 1 | . 1 . Weapon 3 | . 2 1 Highest Loss Streak 3 | . 3 3 To Critical Strikes . | . . . Average Backups 9 | . 8 10 Power . | . 1 . Propulsion 5 | . 4 6 Utility 1 | . 1 1 Weapon 1 | . 1 2 Tool/Special . | . . . Unused Backups 6 | . 1 5 Power . | . . . Propulsion 3 | . . 3 Utility 2 | . 1 1 Weapon 1 | . . 1 Tool/Special . | . . . Average Slot Usage (%) 99 | . 99 99 Engine 13 | . 14 13 Treads 27 | . 26 27 Storage 14 | . 14 14 Protection 13 | . 13 14 Ballistic Gun 26 | . 27 23 Ballistic Cannon 1 | . . 4 Peak Build Rating 13 | . 8 13 Average Rating 8 | . 7 9 On Entrance 6 | 6 6 8 Avg Prop Armor Cover (%) . | . . . Naked Turns . | . . . Heaviest Build 35 | 14 32 35 Greatest Support 40 | 20 40 40 Greatest Overweight (x) . | . . . Average Overweight (x) . | . . . Largest Inventory Capacity 15 | . 15 15 Average Capacity 14 | . 14 15 Most Carried 15 | . 12 15 Average Carried 9 | . 8 11 Final Capacity 15 | 8 15 15 Final Carried 12 | 6 10 12 Class Distribution -------------------- 100% | Mutant Dominant Class ---------------- Mutant | -10/Materials Mutant | -10/Subcaves Resources | -11 -10 -10 ----------- Run | Yrd Mat Sub Matter Collected 561 | 200 280 81 Remotely . | . . . Salvage Created 839 | . 697 142 Parts 52 | . 35 17 Haulers Intercepted 2 | . 2 . Recyclers Shooed . | . . . Parts Field Recycled . | . . . Retrieved Matter . | . . . Parts Self-Destructed 5 | . . 5 Prevented . | . . . Parts Restored . | . . . Kills | -11 -10 -10 ------- Run | Yrd Mat Sub Combat Hostiles Destroyed 19 | . 12 7 Guns 16 | . 12 4 Cannons 3 | . . 3 Classes Destroyed 5 | . 4 1 Hauler 2 | . 2 . Recycler 1 | . 1 . Watcher 1 | . 1 . Grunt 12 | . 12 . Subdweller 7 | . . 7 Best Kill Streak 3 | . 3 2 Combat Bots Only 3 | . 3 2 Max Kills in Single Turn 1 | . 1 1 Gunslinging . | . . . Exploded . | . . . Melee . | . . . Uniques/NPCs Destroyed . | . . . Combat | -11 -10 -10 -------- Run | Yrd Mat Sub Hostile Shots Fired 92 | . 42 50 Missed 25 | . 12 13 Hits 67 | . 30 37 Projectile 67 | . 30 37 Damage Taken 1383 | . 601 782 Core 262 | . 139 123 Absorbed by Shields . | . . . Core Remaining (%) 100 | 100 . . Volleys Fired 74 | . 43 31 Largest 2 | . 2 2 Hottest 63 | . 40 63 Shots Fired 141 | . 86 55 Gun 119 | . 86 33 Cannon 22 | . . 22 Launcher . | . . . Special . | . . . Kinetic 141 | . 86 55 Thermal . | . . . Explosive . | . . . Electromagnetic . | . . . Robot Hit Streak 12 | . 12 10 Robot Miss Streak 2 | . 2 2 Penetration Max . | . . . Secondary Targets 1 | . 1 . Max Gunslinging Chain 1 | . 1 . Shots Hit Robots 99 | . 63 36 Core Hits 41 | . 31 10 Critical Kills . | . . . Critical Parts Destroyed 1 | . 1 . Critical Strikes 2 | . 1 1 Destroy 1 | . 1 . Blast 1 | . . 1 Melee Attacks . | . . . Impact . | . . . Slashing . | . . . Piercing . | . . . Sneak Attacks . | . . . Combat Hostiles . | . . . Follow-up Attacks . | . . . Damage Inflicted 1592 | . 912 680 Guns 1204 | . 816 388 Cannons 292 | . . 292 Explosions 84 | . 84 . Melee . | . . . Ramming 12 | . 12 . Kinetic 1496 | . 816 680 Thermal 84 | . 84 . Explosive . | . . . Electromagnetic . | . . . Impact . | . . . Slashing . | . . . Piercing . | . . . Highest Corruption . | . . . Average Corruption . | . . . Corruption Purged . | . . . Corruption Blocked . | . . . Overload Shots . | . . . Overflow Damage 98 | . 98 . Projectiles . | . . . Explosions 98 | . 98 . Melee . | . . . Knockbacks 4 | . . 4 Impact . | . . . Kinetic 4 | . . 4 Secondary . | . . . Self-Inflicted Damage 224 | . 224 . Shots 2 | . 2 . Rammed 2 | . 2 . Targets Rammed 3 | . 3 . Kicked . | . . . Crushed 1 | . 1 . Highest Temperature 9 | . 9 . Average Temperature 3 | . 3 . Received Heat Transfer 357 | . 216 141 Siege Activations . | . . . Martial Activations . | . . . Shielding Activations . | . . . Robots Disrupted . | . . . Combat Hostiles . | . . . Robots Corrupted . | . . . Combat Hostiles . | . . . Parts Fried . | . . . Impact Corruptions . | . . . Robots Melted . | . . . Combat Hostiles . | . . . Parts Melted . | . . . Heat Transferred 50 | . 50 . Parts Sabotaged . | . . . Parts Stolen . | . . . Parts Stripped . | . . . Power Chain Reactions . | . . . Alert | -11 -10 -10 ------- Run | Yrd Mat Sub Maximum Alert Level . | . . . Low Security (%) 100 | . 100 . Level 1 . | . . . Level 2 . | . . . Level 3 . | . . . Level 4 . | . . . Level 5 . | . . . High Security . | . . . Max Security . | . . . Peak Influence 153 | . 153 . Initial . | . . . Average 51 | . 51 . Influence Increases 492 | . 492 . Destroy 0b10 Robot/C 240 | . 240 . Destroy 0b10 Robot/NC 20 | . 20 . Destroy Leader 66 | . 66 . Successful Hack 44 | . 44 . Select Force Hacks 60 | . 60 . Disable Machine 30 | . 30 . Destroy Structure 32 | . 32 . Influence Decreases 492 | . 404 88 Entered New Map 43 | . . 43 Time Decay 419 | . 374 45 Lost Part 30 | . 30 . Squads Dispatched 5 | . 5 . Investigation 5 | . 5 . Extermination . | . . . Reinforcement . | . . . Assault . | . . . Garrison . | . . . Intercept . | . . . Searches Triggered . | . . . Construction Impeded . | . . . Haulers Reinforced . | . . . Active Scanning Responses . | . . . Cargo Convoy Interrupts . | . . . Stealth | -11 -10 -10 --------- Run | Yrd Mat Sub Distress Signals 2 | . 2 . Communications Jammed . | . . . Distress Signals . | . . . Times Spotted 23 | . 15 8 Peak Tracking Total 4 | . 4 3 Tactical Retreats . | . . . Traps | -11 -10 -10 ------- Run | Yrd Mat Sub Traps Triggered 1 | . 1 . Indirectly . | . . . Trap Hack Attempts . | . . . Triggered . | . . . Disarmed . | . . . Reprogrammed . | . . . Reused . | . . . Traps Extracted . | . . . Installed . | . . . Triggered . | . . . Machines | -11 -10 -10 ---------- Run | Yrd Mat Sub Machines Disabled 2 | . 2 . Max in Single Turn 2 | . 2 . Machines Repaired . | . . . Machines Dismantled . | . . . Machines Sabotaged . | . . . Overloaded Fab Kills . | . . . Hacking | -11 -10 -10 --------- Run | Yrd Mat Sub Machines Accessed 11 | . 10 1 Terminals 8 | . 8 . Fabricators . | . . . Repair Stations . | . . . Recycling Units 2 | . 2 . Scanalyzers . | . . . Garrison Access . | . . . Total Hacks 29 | . 25 4 Successful 19 | . 15 4 Failed 10 | . 10 . Catastrophic 1 | . 1 . Database Lockouts . | . . . Manual 21 | . 21 . Terminals 23 | . 23 . Fabricators . | . . . Repair Stations . | . . . Recycling Units 2 | . 2 . Scanalyzers . | . . . Garrison Access . | . . . Terminal Hacks 9 | . 5 4 Record 4 | . . 4 Prototype ID Bank 3 | . 3 . Terminal Index 1 | . 1 . Locate Traps 1 | . 1 . Fabricator Hacks . | . . . Repair Station Hacks . | . . . Recycling Unit Hacks . | . . . Scanalyzer . | . . . Garrison Access Hacks . | . . . Unauthorized Hacks 10 | . 10 . Terminals 8 | . 8 . Botnet 1 | . 1 . Operators 1 | . 1 . Skim 6 | . 6 . Fabricators . | . . . Repair Stations . | . . . Recycling Units 2 | . 2 . Tunnel 2 | . 2 . Scanalyzers . | . . . Garrison Access . | . . . Data Cores Recovered . | . . . Used . | . . . Hacking Detections 8 | . 8 . Full Trace Events 2 | . 2 . Feedback Events . | . . . Feedback Blocked . | . . . Robot Schematics Acquired . | . . . Robots Built . | . . . Authchips . | . . . Time . | . . . Total Robot Build Rating . | . . . Part Schematics Acquired . | . . . Parts Built . | . . . Authchips . | . . . Time . | . . . Total Part Build Rating . | . . . Part Studies Acquired . | . . . Parts Repaired . | . . . Time . | . . . Parts Recycled . | . . . Recycled Matter . | . . . Retrieved Matter . | . . . Retrieved Components . | . . . Parts Scanalyzed . | . . . Part Schematics Acquired . | . . . Parts Damaged . | . . . Bothacking | -11 -10 -10 ------------ Run | Yrd Mat Sub Used RIF Installer . | . . . Robots Hacked . | . . . Non-combat . | . . . Combat . | . . . Robot Hacks Applied . | . . . Relay Couplers Released . | . . . Fabnet Peak Effective % . | . . . Robots Rewired . | . . . Allies Hacked . | . . . Hacks Repelled . | . . . Allies | -11 -10 -10 -------- Run | Yrd Mat Sub Total Allies . | . . . Largest Group . | . . . Highest-Rated Group . | . . . Highest-Rated Ally . | . . . Total Orders . | . . . Ally Attacks . | . . . Total Damage . | . . . Kills . | . . . Allies Corrupted . | . . . Allies Melted . | . . . Intel | -11 -10 -10 ------- Run | Yrd Mat Sub Active Infowar (turns) . | . . . Robot Analysis Total . | . . . Derelict Logs Recovered 1 | . . 1 Drone Launches . | . . . Drone Recoveries . | . . . Exploration | -11 -10 -10 ------------- Run | Yrd Mat Sub Turns Passed 2392 | . 1505 887 Spaces Moved 1261 | 1 769 491 Core . | . . . Treads 1221 | . 730 491 Legs 40 | 1 39 . Wheels . | . . . Hover . | . . . Flight . | . . . Fastest Speed 120 | 120 120 160 Average Speed 158 | 120 157 160 Slowest Speed 160 | 120 160 160 Overloaded Moves . | . . . Propulsion Burnouts . | . . . Robots Hopped . | . . . Potential Cave-ins . | . . . Cave-ins Triggered . | . . . Exploration Rate (%) 38 | 2 90 24 Regions Visited 2 Branch Regions 1 Pre-discovered Areas 3 | . 2 1 Known Exits Taken 1 | . 1 . Unknown Exits Taken 1 | 1 . . Scrap Searched . | . . . Spaces Dug . | . . . Terrain Destroyed 35 | . 35 . Melee . | . . . Projectile . | . . . AOE 35 | . 35 . Terrain Rammed . | . . . Walls Destroyed . | . . . Machines Disabled . | . . . Actions | -11 -10 -10 --------- Run | Yrd Mat Sub Total 1508 | . 971 537 Wait 144 | . 142 2 Move 1259 | . 768 491 Hop . | . . . Pick Up 11 | . 7 4 Fast Attach 1 | . 1 . Attach 7 | . 3 4 Detach . | . . . Swap 6 | . 3 3 Drop 3 | . 1 2 Fire 74 | . 43 31 Melee . | . . . Ram . | . . . Kick . | . . . Crush 3 | . 3 . Escape Stasis . | . . . Rewire . | . . . Trap . | . . . Miscellaneous . | . . . Route ------- -11/Scrapyard -10/Materials (discovered 4 exits: *Mat x2 / [*Min] / *Sub) -10/Subcaves (discovered 1 exit: [*Mat]) History --------- Turn | Location | Event 1 | -11/Scrapyard | Discovered new exit (range 0) 1 | -11/Scrapyard | Entered Materials 309 | -10/Materials | Build established: Mutant 430 | -10/Materials | Discovered new exit (range 7) 845 | -10/Materials | Discovered new exit (range 5) 1112 | -10/Materials | Learned Storage security intel 1150 | -10/Materials | Identified exit to Subcaves 1150 | -10/Materials | Identified exit to Materials 1154 | -10/Materials | Learned 4 Recycling zone layouts 1181 | -10/Materials | Learned Storage stockpile data 1376 | -10/Materials | Core integrity fell below 50% 1406 | -10/Materials | Lost 3 parts (1u2w) 1506 | -10/Materials | Entered Subcaves 1507 | -10/Subcaves | Approached by a straggling Scientist 1559 | -10/Subcaves | Discovered new exit (range 13) 1685 | -10/Subcaves | Curiously followed by a Cobbler waking with a query about "LVR3C" 2010 | -10/Subcaves | Shifting Twisted Machinery released Battle Cannon 2019 | -10/Subcaves | Shifting Twisted Machinery released Barrage Gun 2116 | -10/Subcaves | A Subdweller sparked back to life 2116 | -10/Subcaves | A Subdweller sparked back to life 2161 | -10/Subcaves | Found Prototype Flight Unit 2198 | -10/Subcaves | Visited Clippyterm 2203 | -10/Subcaves | Learned Factory fabricator intel 2226 | -10/Subcaves | Learned location of Zion (-6) 2226 | -10/Subcaves | Met a Zionite searching for "candidates" 2354 | -10/Subcaves | Ambushed by Subdwellers from Twisted Machinery 2385 | -10/Subcaves | Core integrity fell below 20% 2393 | -10/Subcaves | Destroyed by XR-2AT(R) with Subdweller Laser Last Messages --------------- 02226_ 2Z-7UH(z): "Hey you! It's really dangerous down here, I feel that you could die at any moment. For your health and safety might I suggest a trip to Zion?" World map updated: -6/Zion. VI-ET4(c): "I think it's somewhere east of here" 02271_ TJ-Q9Z(z) pulls a Mak. Shrapnel Gun out of the Twisted Machinery. 02295_ 8G-NYK(R) destroyed. 02297_ RP-D4Y(O) collects matter. 02308_ Lgt. Treads destroyed. 02308_ 6Y-22T(R) destroyed. 02313_ Acquired 40 matter. 02374_ 3L-VGJ(R) knocked back. 02379_ Ion Engine destroyed. 02379_ Lgt. Treads destroyed. 02381_ 3L-VGJ(R) knocked back. 02381_ Lgt. Treads destroyed. 02387_ 3L-VGJ(R) destroyed. 02390_ IF-MRW(R) destroyed. Map ----- +----------------------------------------------------+ | ?????????????????????????????????????????????????? | | ?????????????????????????????????????????????????? | | ?????????????????????????????????????????????????? | | ?????????????????????????????????????????????????? | | ?????????????????????????????????????????????????? | | ?????????????????????????????????????????????????? | | ?????????????????????????????????????????????????? | | ?????????????????????????????????????????????????? | | ?????????????????????????????????????????????????? | | ?????????????????????????????????????????????????? | | ?????????????????????????????????????????????????? | | ?????????????????????????????????????????????????? | | ?????????????????????????????????????????????????? | | ?????????????????????????????????????????????????? | | ??????????????????????????###????????????????????? | | ???????????#########????## ####?????????????????? | | ??????????## #????? ##????????????????? | | ??????????# #????? #????????????????? | | ????????#### ##????? ###??????????????? | | ??????### #?????? ##?????????????? | | ??????# #####???? ##????????????? | | ??????# # ## ##### " "???????????? | | ??????### # # ## = ""????????????? | | ????????##### [&% " ????????????? | | ????????????# # & "" ?????????????? | | ???????????## "### ## @ # ""?????????????? | | ?????????### ""##### ###?? ""????????????? | | ?????????# [&"""#??# #?????"""""????????????? | | ?????????### &]"""#?# ##???????"??????????????? | | ??#######??##[ """### #???????????????????????? | | ?# ## #####&"""" # #??????????????????????? | | ?## !""""" R ?????????????????????? | | ?# & """ ??????????????????????? | | ?## ## "" ## # ?????????????????????? | | ?## ##### """ ####### ?????????????????????? | | ## ##?##""" ####??????# = ????????????????????? | | # ##?# #??????????*% ????????????????????? | | ### ##??????????% ?????????????????????? | | ### ##???????????? ?????????????????????? | | ### #??????????????????????????????????? | | # ### ##??????????????????????????????????? | | ## ### #??????????????????????????????????? | | ### ### ##??????????????????????????????????? | | ##### ## ##??????????????????????????????????? | | #???# ### #??????????????????????? | | ##??# #????????????????????????????? | | ##?# ## ####????????????????????????????? | | #?# ######??##???????????????????????????????? | | ###?# #????????????????????????????????????????? | | ????# #????????????????????????????????????????? | +----------------------------------------------------+ Best States ------------- Heat Dissipation 25 Energy Generation 10 Energy Capacity 250 Matter Stores 300 Matter Capacity 300 Sight Range 16 Terrain Scan Density 10 Armor Coverage 150 Evasion (%) 55 Recoil Reduction 2 Item Schematics ----------------- None Robot Schematics ------------------ None Fabricated ------------ Nothing Repaired ---------- Nothing Studied --------- None Alien Tech Used ----------------- None Achievements -------------- None Challenges ------------ None Game ------ Seed WeightShrapnelRecalibrator Manual? 1 Play Time 00:12:30 Cumulative 156.4 hours Start 2026.09.21 @ 18:52:05 End 2026.09.21 @ 19:07:24 Sessions 5 Manual Loads 0 Difficulty Rogue Special Mode None Game No. 98 Rogue 97 Adventurer 1 Explorer 0 Win Type - Total 11 Types 4/2/1/1/0/0/0/1/1/1 Lore% 62 Gallery% 70 Achievement% 70 Wizard Run 0 Options --------- Layout 1 ASCII 0 Keyboard 0 Movement Numpad Keybinds 0 Fullscreen 1 Font 32/SmallcapsGlow Map View 50x35 Zoom Use 0% Tactical HUD 1 Map Filters NONE Filters NONE Steam 1 RUN: b38f2039-a407-46f6-93bf-2cf1016d661a